bitfinex/quotes_ETHUSD_20250721
["timestamp","ask_amount","ask_price","bid_price","bid_amount"]
[1753090642891,3.90141989,3770.0,3769.9,0.001]
[1753090645371,3.47331989,3770.0,3769.9,0.001]
[1753090645573,0.82,3769.3,3769.1,0.001]
[1753090645893,4.097,3769.2,3769.1,0.001]
[1753090646098,4.101,3769.2,3769.1,0.001]
[1753090647977,6.75408288,3769.2,3769.1,0.001]
[1753090648289,4.101,3769.2,3769.1,0.001]
[1753090649284,4.101,3769.2,3769.1,0.4531]
[1753090649285,4.104,3769.2,3769.1,0.4531]
[1753090649592,4.104,3769.2,3769.1,1.61336336]
[1753090650065,4.104,3769.2,3769.1,1.2654]
[1753090651034,4.104,3769.2,3769.1,3.91855327]
[1753090651237,4.104,3769.2,3769.1,0.8133]
[1753090651511,4.104,3769.2,3769.1,0.001]
[1753090652318,3.4462461,3768.4,3768.3,0.001]
[1753090652514,7.5522461,3768.4,3768.3,0.001]
[1753090652676,7.9803461,3768.4,3768.3,0.001]
[1753090654417,7.9803461,3768.4,3768.3,1e-08]
[1753090654418,50.74698268,3768.4,3768.3,1e-08]
[1753090654739,20.74698268,3768.4,3768.3,1e-08]
[1753090655421,20.19698268,3768.4,3768.3,1e-08]
[1753090656125,3.8743461,3768.4,3768.3,1e-08]
[1753090656304,7.9923461,3768.4,3768.3,1e-08]
[1753090657199,7.5642461,3768.4,3768.3,1e-08]
[1753090657543,7.9923461,3768.4,3768.3,1e-08]
[1753090658116,3.8743461,3768.4,3768.3,1e-08]
[1753090658327,7.9913461,3768.4,3768.3,1e-08]
[1753090659531,4.116,3768.4,3768.3,1e-08]
[1753090660733,4.5441,3768.4,3768.3,1e-08]
[1753090660919,7.1977461,3768.4,3768.3,1e-08]
[1753090662838,6.7696461,3768.4,3768.3,1e-08]
[1753090663148,4.116,3768.4,3768.3,1e-08]
[1753090663444,6.9016461,3768.4,3768.3,1e-08]
[1753090663847,0.132,3768.4,3768.3,1e-08]
[1753090664144,4.116,3768.4,3768.3,3.10421654]
[1753090664341,4.116,3768.4,3768.3,3.69322153]
[1753090664758,8.0662461,3768.4,3768.3,1e-08]
[1753090665296,8.0802461,3768.4,3768.3,1e-08]
[1753090667257,14.15924606,3768.4,3768.3,1e-08]
[1753090668175,3.41920957,3767.6,3767.5,0.001]
[1753090668378,0.1374,3767.0,3766.7,0.001]
[1753090668679,4.151,3766.9,3766.7,0.001]
[1753090669755,6.8057137,3766.9,3766.7,0.001]
[1753090670069,2.65477328,3766.8,3766.7,0.001]
[1753090670270,7.26921239,3766.9,3766.7,0.001]
[1753090670483,1.2456,3766.8,3765.9,0.7651]
[1753090670787,1.2456,3766.8,3765.5,0.4505]
[1753090670788,13.82913658,3766.7,3765.5,2.65568981]
[1753090670989,0.7821,3766.8,3765.6,0.47705619]
[1753090670990,6.80896817,3766.6,3765.6,0.47705619]
[1753090671163,2.65498811,3766.5,3765.7,2.65554876]
[1753090671377,2.6551887,3766.3,3765.4,3.10621922]
[1753090671684,6.81221152,3766.2,3765.5,2.65568682]
[1753090671891,4.157,3766.2,3765.5,2.65568682]
[1753090672387,0.7821,3766.8,3765.6,0.4505]
[1753090672713,9.21663658,3766.3,3762.5,1.32486336]
[1753090672901,0.8071,3766.5,3762.5,1.32486336]
[1753090672902,0.4635,3766.2,3763.8,9.21663658]
[1753090673112,4.167,3766.1,3764.6,3.0]
[1753090673413,4.167,3766.0,3765.5,2.65568187]
[1753090673574,4.169,3765.9,3765.5,2.65568187]
[1753090673781,3.11857003,3766.4,3765.6,2.65560332]
[1753090673782,4.17,3765.8,3765.6,2.65560332]
[1753090673964,0.8071,3766.5,3765.7,0.4505]
[1753090674162,4.17,3766.4,3765.9,2.65539071]
[1753090674470,9.21663658,3766.1,3764.8,0.782]
[1753090674682,2.65575766,3765.5,3764.9,0.1328]
[1753090674903,4.174,3765.4,3764.9,0.1328]
[1753090675106,6.82980576,3765.4,3764.9,0.1328]
[1753090675310,0.4635,3765.3,3764.5,2.65637335]
[1753090675496,0.1328,3765.1,3764.4,0.1328]
[1753090675698,4.174,3765.0,3764.2,0.4505]
[1753090676006,4.176,3764.9,3764.4,0.1328]
[1753090676203,0.1328,3765.1,3764.8,2.65618359]
[1753090676551,4.179,3765.0,3764.9,2.65611304]
[1753090676808,4.18,3765.1,3765.0,2.78884249]
[1753090677112,4.18,3765.1,3765.0,3.23934249]
[1753090677308,0.132,3765.6,3765.2,2.65589693]
[1753090677621,3.4437734,3766.1,3765.2,2.65589693]
[1753090677622,4.18,3765.5,3765.2,2.65584212]
[1753090677825,4.179,3765.4,3765.3,3.23833087]
[1753090678294,0.132,3765.9,3765.3,1.17193645]
[1753090678492,0.132,3766.3,3765.7,2.65554876]
[1753090678807,4.178,3766.2,3765.9,2.65538223]
[1753090678971,0.132,3766.3,3766.0,0.4505]
[1753090679171,4.178,3766.2,3766.0,0.4505]
[1753090679373,4.177,3766.1,3765.9,0.132]
[1753090679572,4.177,3766.0,3765.9,0.132]
[1753090679800,4.177,3766.0,3765.9,2.78740773]
[1753090679969,4.177,3766.0,3765.9,3.23790773]
[1753090680386,0.132,3766.6,3766.2,2.65518027]
[1753090680587,0.132,3766.6,3765.9,0.5825]
[1753090680796,4.175,3766.5,3766.0,0.4505]
[1753090680993,4.175,3766.6,3766.5,2.65496132]
[1753090681189,4.177,3766.7,3766.6,2.65487262]
[1753090681605,4.176,3766.7,3766.5,2.65493107]
[1753090681927,4.176,3766.7,3766.4,0.9282]
[1753090682126,4.176,3766.7,3766.6,2.65491424]
[1753090682429,4.176,3766.7,3766.6,2.78691424]
[1753090682633,6.369,3767.3,3766.8,2.6547099]
[1753090682817,6.369,3767.3,3766.6,3.23741424]
[1753090682818,6.369,3767.3,3766.6,0.132]
[1753090683017,4.176,3767.2,3766.9,0.132]
[1753090683919,4.6395,3767.2,3766.9,0.132]
[1753090684913,4.176,3767.2,3766.9,0.132]
[1753090685932,6.369,3767.3,3766.9,0.132]
[1753090686232,4.171,3767.2,3766.9,0.132]
[1753090686730,2.65463233,3767.0,3766.4,0.7962]
[1753090686916,2.65467884,3767.0,3766.5,0.132]
[1753090687438,3.11817884,3767.0,3766.5,0.132]
[1753090687735,0.4635,3767.0,3766.5,0.132]
[1753090689205,3.11814521,3767.0,3766.5,0.132]
[1753090690207,0.4635,3767.0,3766.5,0.132]
[1753090690400,3.11813484,3767.0,3766.5,0.132]
[1753090691119,0.4635,3767.0,3766.5,0.132]
[1753090691318,3.11814994,3767.0,3766.5,0.132]
[1753090691726,0.4635,3767.0,3766.5,0.132]
[1753090692144,0.132,3767.1,3766.6,0.4595]
[1753090692507,4.163,3767.0,3766.5,2.81349578]
[1753090692740,4.162,3766.9,3766.8,2.65477328]
[1753090692927,4.162,3766.9,3766.8,0.5915]
[1753090693439,4.162,3766.9,3766.8,4.00337328]
[1753090693740,4.162,3766.9,3766.8,1.3486]
[1753090694542,4.161,3766.9,3766.8,1.3486]
[1753090694741,4.161,3766.9,3766.8,0.8891]
[1753090696951,4.157,3766.9,3766.8,0.8891]
[1753090697530,4.157,3766.9,3766.8,1.3486]
[1753090697947,4.157,3766.9,3766.8,4.00337328]
[1753090698139,6.369,3767.3,3766.8,1.3486]
[1753090698463,4.157,3767.2,3766.8,1.3486]
[1753090698778,4.157,3767.2,3766.8,0.8891]
[1753090698934,4.6103,3767.2,3766.8,0.132]
[1753090699660,4.157,3767.2,3766.8,0.132]
[1753090700663,6.8115298,3767.2,3766.8,0.132]
[1753090700859,4.157,3767.2,3766.8,0.132]
[1753090701567,4.6103,3767.2,3766.8,0.132]
[1753090701861,4.157,3767.2,3766.8,0.132]
[1753090702041,4.152,3767.1,3766.8,0.132]
[1753090702240,2.65391325,3768.1,3766.9,0.85824702]
[1753090702429,4.15,3768.0,3767.6,0.132]
[1753090702925,4.6033,3768.0,3767.6,0.132]
[1753090703530,0.132,3768.2,3767.7,2.6541185]
[1753090703729,4.148,3768.1,3767.6,0.132]
[1753090703968,4.148,3768.1,3767.9,0.132]
[1753090704327,4.148,3768.1,3767.9,2.78596837]
[1753090704527,0.002,3768.4,3767.9,0.5915]
[1753090704528,4.148,3768.0,3767.9,0.5915]
[1753090704731,4.148,3768.0,3767.9,3.24549824]
[1753090704987,4.148,3768.0,3767.9,0.132]
[1753090706063,4.148,3768.0,3767.9,2.78599824]
[1753090706363,0.002,3768.4,3767.9,0.5915]
[1753090706530,0.002,3768.4,3768.3,2.65371653]
[1753090706733,4.148,3768.4,3768.3,0.132]
[1753090708143,4.6013,3768.4,3767.7,3.776]
[1753090708348,2.65383895,3768.2,3767.2,2.65443356]
[1753090708643,2.65383895,3768.2,3767.0,2.65463233]
[1753090708644,0.4533,3768.1,3767.6,0.132]
[1753090708854,4.5973,3768.0,3767.6,0.132]
[1753090709061,7.25123159,3768.0,3767.1,3.0]
[1753090709356,7.25123159,3768.0,3767.3,3.132]
[1753090709357,0.4533,3767.9,3767.3,3.132]
[1753090709557,0.132,3768.0,3767.3,2.78642036]
[1753090709760,4.146,3767.9,3767.4,0.8578435]
[1753090710068,4.146,3767.9,3767.6,0.132]
[1753090710069,4.146,3767.8,3767.6,0.132]
[1753090711179,4.146,3767.8,3767.6,2.78618894]
[1753090711381,4.146,3767.8,3767.6,2.7862082]
[1753090711566,4.146,3767.8,3767.7,2.65413912]
[1753090711765,0.002,3768.4,3767.7,1.0866787]
[1753090711968,4.144,3768.3,3768.1,2.65379706]
[1753090712159,4.144,3768.3,3768.2,0.132]
[1753090714383,0.002,3768.4,3768.2,0.132]
[1753090714587,0.002,3768.4,3768.3,3.42511653]
[1753090714748,4.142,3768.4,3768.3,0.7714]
[1753090716265,4.142,3768.4,3768.3,0.9034]
[1753090717050,4.142,3768.4,3768.3,0.132]
[1753090717367,4.5953,3768.4,3768.3,0.132]
[1753090717758,4.5953,3768.4,3767.2,3.43632633]
[1753090717980,0.132,3768.1,3767.4,0.132]
[1753090718166,5.3964,3768.0,3767.4,0.132]
[1753090718365,7.5970561,3768.0,3766.8,3.43665871]
[1753090718590,0.132,3767.8,3767.1,3.132]
[1753090719666,0.132,3767.8,3767.1,0.132]
[1753090719990,0.8041,3768.0,3767.5,0.132]
[1753090720292,4.138,3767.7,3767.5,0.132]
[1753090720706,0.4533,3767.6,3767.5,0.132]
[1753090721212,0.4533,3767.6,3767.2,0.132]
[1753090722211,0.4617,3767.5,3767.2,0.132]
[1753090722403,4.138,3767.7,3767.2,0.132]
[1753090722710,0.8041,3768.0,3767.2,0.132]
[1753090723007,4.5987,3767.9,3767.4,0.132]
[1753090723211,4.137,3767.9,3767.4,0.132]
[1753090723519,3.11580631,3767.8,3767.4,0.132]
[1753090723700,0.4617,3767.8,3766.9,2.65465752]
[1753090723901,0.5937,3767.8,3767.2,0.132]
[1753090724102,0.4617,3767.8,3767.0,2.65461715]
[1753090724421,0.4617,3767.8,3767.3,0.132]
[1753090724781,4.137,3767.9,3767.3,0.132]
[1753090724782,0.4617,3767.7,3767.3,0.132]
[1753090724981,0.4617,3767.6,3767.3,0.132]
[1753090725219,6.79100283,3767.9,3767.3,0.132]
[1753090725220,4.5977,3767.5,3767.3,0.132]
[1753090725793,4.136,3767.5,3767.3,0.132]
[1753090728521,0.002,3767.8,3767.3,0.132]
[1753090728829,4.133,3767.7,3767.6,2.65420957]
[1753090729140,0.134,3768.4,3767.7,2.65413912]
[1753090729295,4.131,3768.3,3767.9,2.65399824]
[1753090729488,4.131,3768.3,3768.0,2.78592095]
[1753090729725,4.131,3768.3,3768.2,0.132]
[1753090734429,4.5927,3768.3,3768.2,0.132]
[1753090734598,2.7857893,3768.2,3767.5,0.132]
[1753090734796,0.5937,3768.2,3767.5,0.132]
[1753090735025,3.11555738,3768.1,3767.5,0.132]
[1753090735228,4.128,3768.0,3767.5,0.132]
[1753090735727,1.2825,3767.9,3767.5,0.132]
[1753090736122,0.4617,3767.8,3767.5,0.132]
[1753090736337,4.127,3767.7,3767.5,0.132]
[1753090737539,0.4617,3767.6,3767.5,0.132]
[1753090737937,0.4617,3767.6,3767.1,0.132]
[1753090738248,0.4617,3767.6,3766.3,0.8097]
[1753090738249,2.65449624,3767.2,3766.3,0.8097]
[1753090738546,2.65479492,3766.8,3766.1,0.001]
[1753090738752,4.126,3766.7,3766.3,0.132]
[1753090738932,0.132,3766.9,3766.3,0.132]
[1753090739101,4.126,3766.6,3766.4,0.7904]
[1753090739300,4.126,3766.6,3766.5,0.4013993]
[1753090739601,0.4617,3767.4,3766.5,0.8377993]
[1753090739806,2.65342906,3768.8,3767.1,2.65455732]
[1753090739807,0.132,3767.6,3767.1,2.65455732]
[1753090740044,4.128,3767.5,3767.1,0.7904]
[1753090740340,4.128,3767.4,3767.3,0.132]
[1753090743656,4.126,3767.4,3767.3,3.22282093]
[1753090743864,4.126,3767.4,3767.3,3.89224634]
[1753090744530,4.126,3767.4,3767.3,0.80142541]
[1753090744735,4.126,3767.4,3767.3,0.132]
[1753090744935,0.132,3768.0,3767.4,0.7571]
[1753090745130,4.122,3767.9,3767.6,2.65420057]
[1753090745337,4.122,3767.9,3767.8,0.132]
[1753090745640,4.122,3767.9,3767.8,3.22246868]
[1753090745838,4.122,3767.9,3767.8,3.81013602]
[1753090746570,0.002,3768.4,3767.8,3.81013602]
[1753090746773,4.123,3768.3,3768.0,0.132]
[1753090747659,0.002,3768.4,3767.8,3.24173208]
[1753090747975,4.121,3768.2,3768.0,3.09027708]
[1753090748343,4.121,3768.2,3768.1,0.132]
[1753090750063,4.121,3768.2,3768.1,3.60735738]
[1753090750274,4.121,3768.2,3768.1,4.04375738]
[1753090750651,4.123,3768.2,3768.1,4.04375738]
[1753090751585,0.002,3768.2,3768.1,4.71353728]
[1753090752684,0.002,3768.2,3768.1,4.74007585]
[1753090753388,0.002,3768.2,3768.1,1.6232799]
[1753090753562,0.002,3768.2,3768.1,0.9535]
[1753090753981,0.002,3768.2,3768.1,4.07735738]
[1753090754194,0.002,3768.2,3768.1,1.4235]
[1753090754684,0.002,3768.2,3768.1,0.9535]
[1753090754891,0.002,3768.2,3768.1,3.60735738]
[1753090755088,0.002,3768.2,3768.1,1.62663919]
[1753090755799,0.002,3768.2,3768.1,4.75049657]
[1753090756091,0.002,3768.2,3768.1,2.09663919]
[1753090756670,0.002,3768.2,3768.1,4.75049657]
[1753090759161,0.002,3768.2,3768.1,2.09663919]
[1753090759360,0.002,3768.2,3768.1,0.132]
[1753090760790,0.002,3768.2,3768.1,3.25585738]
[1753090761755,0.002,3768.2,3768.1,0.602]
[1753090761960,0.002,3768.2,3768.1,0.132]
[1753090765108,0.002,3768.2,3768.1,2.78585738]
[1753090765407,0.002,3768.2,3768.1,3.90372978]
[1753090765786,0.002,3768.2,3768.1,1.22333383]
[1753090765985,0.002,3768.2,3768.1,0.132]
[1753090767928,0.002,3768.2,3768.1,2.78585738]
[1753090768133,4.103,3768.2,3768.1,3.25585738]
[1753090768483,4.103,3768.2,3768.1,0.602]
[1753090769334,4.103,3768.2,3768.1,3.25585738]
[1753090769489,4.103,3768.2,3768.1,3.92419177]
[1753090770199,4.103,3768.2,3768.1,1.27033439]
[1753090771230,4.103,3768.2,3768.1,3.92419177]
[1753090772026,4.103,3768.2,3768.1,1.27033439]
[1753090772530,4.103,3768.2,3768.1,3.45419177]
[1753090773030,4.103,3768.2,3768.1,0.80033439]
[1753090773241,4.103,3768.2,3768.1,0.132]
[1753090774143,11.4144376,3768.2,3768.1,0.132]
[1753090774326,2.65498473,3766.5,3765.8,0.8042]
[1753090774489,6.76198473,3766.5,3765.8,0.8042]
[1753090774692,6.76198473,3766.5,3765.3,0.47]
[1753090774693,7.22678473,3766.5,3765.3,0.8042]
[1753090775211,7.22678473,3766.5,3765.3,3.46000848]
[1753090775410,7.22678473,3766.5,3765.3,0.8042]
[1753090775621,7.22878473,3766.5,3765.6,2.65561795]
[1753090775799,7.22878473,3766.5,3765.7,2.6820898]
[1753090775998,7.22878473,3766.5,3765.4,0.47]
[1753090776203,7.22878473,3766.5,3765.4,3.12574248]
[1753090776413,3.11978473,3766.5,3765.6,2.65560483]
[1753090776604,7.22878473,3766.5,3765.7,2.65553229]
[1753090776936,7.22878473,3766.5,3765.6,2.65560005]
[1753090778024,10.22878473,3766.5,3765.6,2.65560005]
[1753090778186,10.22878473,3766.5,3765.7,2.68208136]
[1753090778588,10.22878473,3766.5,3765.4,0.47]
[1753090778589,10.22878473,3766.5,3765.6,2.65560775]
[1753090779118,10.22878473,3766.5,3765.7,2.68209435]
[1753090779316,10.22578473,3766.5,3765.7,2.68209435]
[1753090779519,10.22578473,3766.5,3765.7,0.02655548]
[1753090779520,3.0,3766.5,3765.7,0.02655548]
[1753090779722,7.106,3766.5,3765.8,3.12542677]
[1753090780031,3.0,3766.5,3765.9,2.68195027]
[1753090780328,4.106,3766.5,3765.9,2.68190767]
[1753090780514,4.106,3766.5,3765.9,0.02655407]
[1753090780919,4.106,3766.5,3765.8,3.12545554]
[1753090781298,4.5708,3766.5,3765.7,2.65550516]
[1753090781898,4.5708,3766.5,3765.8,2.65547045]
[1753090782330,0.4648,3766.5,3765.7,2.65553066]
[1753090782635,4.5698,3766.5,3765.8,2.65546764]
[1753090782834,0.4648,3766.5,3765.8,2.65546764]
[1753090783021,4.103,3766.5,3765.9,2.68195646]
[1753090783224,4.103,3766.5,3765.8,3.09455951]
[1753090783545,4.5652,3766.5,3765.7,2.65552641]
[1753090783932,4.5652,3766.5,3765.5,3.09472863]
[1753090783933,4.5652,3766.5,3765.8,2.65547181]
[1753090784120,4.5652,3766.5,3765.8,2.65546831]
[1753090784440,4.5652,3766.5,3766.2,0.132]
[1753090787032,4.5622,3766.5,3766.2,0.132]
[1753090788211,7.5622,3766.5,3766.2,0.132]
[1753090789145,3.4622,3766.5,3766.2,0.132]
[1753090789343,7.5602,3766.5,3766.2,0.132]
[1753090789592,10.21518473,3766.5,3765.5,2.65567749]
[1753090789794,10.21518473,3766.5,3766.0,0.132]
[1753090793790,2.65540773,3765.9,3764.5,0.8069]
[1753090794078,0.8041,3765.6,3764.2,0.4391]
[1753090794237,2.65605821,3765.0,3764.2,3.09568786]
[1753090794434,4.102,3764.9,3764.2,3.75202199]
[1753090794635,4.102,3764.8,3764.5,2.6563477]
[1753090794850,0.4622,3765.5,3764.6,0.4391]
[1753090794851,4.102,3764.7,3764.6,0.4391]
[1753090795476,4.102,3764.7,3764.6,3.0954247]
[1753090795913,4.102,3764.7,3764.6,0.4391]
[1753090796607,4.102,3764.7,3764.5,2.65638923]
[1753090796990,4.102,3764.7,3764.6,0.4391]
[1753090797189,4.102,3764.7,3764.6,3.0954247]
[1753090797598,1.2663,3765.6,3764.8,2.656153]
[1753090797776,4.101,3765.5,3765.0,2.65602998]
[1753090797982,0.8061,3766.2,3765.1,0.4391]
[1753090798210,4.101,3766.1,3765.6,2.65557041]
[1753090798411,4.101,3766.1,3765.4,2.65573934]
[1753090798412,4.101,3766.1,3765.4,2.65570201]
[1753090799101,4.101,3766.1,3765.5,2.65568153]
[1753090799415,10.3128249,3766.9,3766.0,2.65533311]
[1753090799588,3.0,3766.7,3766.1,0.02655266]
[1753090799794,3.0,3766.7,3766.0,0.4391]
[1753090799982,3.0,3766.5,3766.1,0.4391]
[1753090800183,4.102,3766.4,3766.1,0.4391]
[1753090800406,4.102,3766.3,3766.2,0.4391]
[1753090800612,3.0,3766.5,3766.2,0.4391]
[1753090800827,4.101,3766.4,3766.2,0.4391]
[1753090801027,4.101,3766.4,3765.9,3.09448407]
[1753090801232,3.0,3766.7,3766.1,2.65525719]
[1753090801549,6.372,3766.9,3766.2,0.4391]
[1753090801697,4.101,3766.8,3766.3,2.65505688]
[1753090802018,4.101,3766.8,3765.7,0.8281]
[1753090802019,7.101,3766.8,3765.7,0.8281]
[1753090802220,3.0,3766.5,3765.7,0.8281]
[1753090802533,3.0,3766.3,3765.4,1.3632]
[1753090802833,3.0,3766.3,3765.5,2.83591374]
[1753090803508,5.65513878,3766.3,3765.5,0.18023]
[1753090803836,5.65513878,3766.3,3766.1,0.132]
[1753090803837,0.4622,3766.2,3766.1,0.132]
[1753090804135,3.11744108,3766.2,3765.6,0.132]
[1753090804329,3.132,3766.3,3765.6,0.132]
[1753090804498,4.105,3766.2,3766.0,0.132]
[1753090804699,0.4622,3766.5,3766.0,0.132]
[1753090804932,3.0,3766.5,3766.0,0.132]
[1753090805106,3.0,3766.3,3765.7,3.09458311]
[1753090805297,3.0,3766.3,3766.2,0.132]
[1753090805493,7.105,3766.3,3766.2,0.132]
[1753090806427,4.105,3766.3,3766.2,0.132]
[1753090806633,7.5672,3766.3,3766.2,0.132]
[1753090806931,0.7583,3766.5,3765.6,3.09471444]
[1753090807137,0.7583,3766.5,3766.1,0.132]
[1753090807138,4.104,3766.3,3766.1,0.132]
[1753090807306,0.7583,3766.5,3766.1,0.132]
[1753090807507,4.108,3766.4,3766.1,0.132]
[1753090808629,0.4622,3766.3,3766.1,0.132]
[1753090809379,2.65541176,3765.9,3765.4,0.8008]
[1753090809537,2.65541176,3765.9,3765.7,0.132]
[1753090809538,4.107,3765.8,3765.7,0.132]
[1753090810127,4.5692,3765.8,3765.7,0.132]
[1753090810841,7.22467825,3765.8,3765.7,0.132]
[1753090811046,4.5692,3765.8,3765.7,0.132]
[1753090811245,4.107,3765.8,3765.7,0.132]
[1753090811659,4.106,3765.8,3765.7,0.132]
[1753090811842,4.106,3765.8,3765.7,3.78483036]
[1753090812044,4.106,3765.8,3765.7,1.12929059]
[1753090812223,4.106,3765.8,3765.7,0.132]
[1753090813337,7.19067825,3765.8,3765.0,0.8008]
[1753090813655,2.65561929,3765.6,3765.2,0.132]
[1753090813860,4.106,3765.5,3765.2,0.132]
[1753090814259,0.4292,3765.4,3765.2,0.132]
[1753090814476,4.106,3765.5,3765.2,0.132]
[1753090816586,3.0849641,3765.4,3765.2,0.132]
[1753090816962,0.4292,3765.3,3764.5,2.65635271]
[1753090817292,4.104,3765.2,3764.9,0.1328]
[1753090817456,0.4292,3765.1,3764.9,0.1328]
[1753090820705,3.08505421,3765.3,3764.9,0.1328]
[1753090820869,0.4292,3765.2,3764.9,0.1328]
[1753090821069,4.5332,3765.1,3764.9,0.1328]
[1753090821487,0.132,3765.6,3764.9,0.1328]
[1753090821488,0.4292,3765.3,3764.9,0.1328]
[1753090821687,4.103,3765.2,3764.9,0.1328]
[1753090821993,0.132,3765.6,3764.9,2.65610825]
[1753090821994,0.4292,3765.6,3764.9,2.65610825]
[1753090822157,4.103,3765.5,3765.2,0.132]
[1753090822484,6.47554945,3765.7,3765.2,0.132]
[1753090822788,6.47554945,3765.7,3765.4,0.132]
[1753090822789,3.0,3765.7,3765.4,0.132]
[1753090822962,4.103,3765.6,3765.1,3.40936136]
[1753090823171,4.103,3765.6,3765.5,0.132]
[1753090823579,4.5322,3765.6,3765.2,0.132]
[1753090824003,0.4292,3765.5,3765.2,0.132]
[1753090824305,4.103,3765.6,3764.8,0.7534]
[1753090824306,4.103,3765.6,3765.0,0.132]
[1753090825500,0.4292,3765.6,3765.1,0.02655971]
[1753090825704,4.106,3765.5,3765.3,0.132]
[1753090826599,0.4292,3765.4,3765.3,0.132]
[1753090826771,0.4292,3765.4,3764.7,0.7734]
[1753090826975,0.4292,3765.4,3765.0,0.132]
[1753090827276,0.778,3765.4,3765.0,0.132]
[1753090827592,0.4292,3765.3,3765.0,0.132]
[1753090827795,4.106,3765.2,3765.0,0.132]
[1753090828512,4.5352,3765.2,3765.0,0.132]
[1753090829089,4.106,3765.2,3765.0,0.132]
[1753090829812,0.778,3765.4,3765.0,0.132]
[1753090830112,4.104,3765.3,3765.0,0.132]
[1753090830710,4.5332,3765.3,3765.0,0.132]
[1753090831705,4.103,3765.2,3765.0,0.132]
[1753090831904,4.103,3765.1,3765.0,2.78804249]
[1753090832115,3.8274,3765.7,3765.0,1.17174986]
[1753090832335,3.8274,3765.7,3765.1,2.65590738]
[1753090832336,4.101,3765.6,3765.1,2.65590738]
[1753090832606,4.101,3765.6,3765.3,0.132]
[1753090833314,4.5302,3765.6,3765.3,0.132]
[1753090834609,0.4292,3765.5,3765.3,0.132]
[1753090835517,0.4292,3765.4,3765.3,0.132]
[1753090836281,4.101,3765.6,3765.3,0.132]
[1753090836483,0.4292,3765.4,3765.3,0.132]
[1753090836918,3.0,3765.5,3765.3,0.132]
[1753090837093,2.65583565,3765.3,3764.9,0.1328]
[1753090837426,4.098,3765.2,3765.1,0.001]
[1753090837613,4.5272,3765.2,3765.1,0.001]
[1753090837985,13.27737025,3765.2,3765.1,0.001]
[1753090838698,17.06927025,3765.2,3765.1,0.001]
[1753090839285,17.07027025,3765.2,3765.1,0.001]
[1753090839583,4.2211,3765.2,3765.1,0.001]
[1753090839833,3.9239,3765.6,3765.1,0.001]
[1753090840128,4.099,3765.5,3765.1,0.001]
[1753090840283,6.505,3765.8,3765.2,0.132]
[1753090840490,6.75456535,3765.7,3765.2,0.132]
[1753090840858,0.7672,3765.5,3765.1,0.001]
[1753090841020,7.099,3765.4,3765.1,0.001]
[1753090841349,7.5282,3765.4,3765.1,0.001]
[1753090841644,3.0,3765.4,3765.1,0.001]
[1753090841842,6.373,3765.8,3765.1,0.001]
[1753090841843,3.4292,3765.7,3765.1,0.001]
[1753090842027,4.1,3765.6,3765.2,0.132]
[1753090842214,5.65590141,3765.2,3765.1,0.001]
[1753090842408,10.57930141,3765.2,3765.1,0.001]
[1753090842613,11.01580141,3765.2,3765.1,0.001]
[1753090843053,11.01580141,3765.2,3764.2,2.65660153]
[1753090843054,2.65752478,3762.9,3762.7,0.004]
[1753090843349,0.8105,3761.7,3760.4,2.65923637]
[1753090843533,0.8105,3761.7,3760.6,0.4414]
[1753090843534,3.0,3761.5,3760.6,0.4414]
[1753090843740,0.20145775,3761.7,3761.0,0.4414]
[1753090843957,0.20145775,3761.7,3761.2,0.4414]
[1753090844255,0.20145775,3761.7,3761.3,1.30426337]
[1753090844543,4.385,3762.1,3761.4,3.27654892]
[1753090844704,4.389,3762.2,3761.4,0.61796634]
[1753090844908,4.39,3762.2,3761.6,3.43378123]
[1753090845108,5.65781822,3762.5,3761.6,3.43378123]
[1753090845346,4.39,3762.4,3761.6,0.7754]
[1753090845551,2.65795986,3762.3,3761.6,0.7754]
[1753090845950,4.387,3762.2,3761.6,0.7754]
[1753090846205,4.387,3762.2,3761.1,1.2487]
[1753090846347,1.247,3762.7,3761.2,0.02658725]
[1753090846547,5.6578073,3762.5,3761.3,0.3934104]
[1753090846788,2.65787795,3762.4,3761.3,0.3934104]
[1753090846969,3.0,3762.5,3761.4,0.02658584]
[1753090847170,2.65815796,3762.1,3761.4,0.02658584]
[1753090847363,7.04216408,3762.0,3761.4,0.02658584]
[1753090847558,4.384,3762.0,3761.3,2.65865431]
[1753090847768,4.384,3762.0,3761.3,0.39073543]
[1753090848069,4.384,3762.0,3761.4,0.02658584]
[1753090848285,4.384,3762.0,3761.4,2.68511315]
[1753090848448,3.0,3762.7,3761.5,0.9914]
[1753090848650,4.381,3762.6,3761.9,2.65816099]
[1753090848859,4.381,3762.6,3761.6,0.55]
[1753090849071,4.381,3762.6,3761.8,2.6582412]
[1753090849282,4.381,3762.6,3761.8,2.65830187]
[1753090849445,4.381,3762.6,3762.0,2.65810974]
[1753090849795,4.381,3762.6,3762.2,2.65799187]
[1753090849944,4.381,3762.6,3762.1,2.65807948]
[1753090850299,4.381,3762.6,3761.8,0.4414]
[1753090850503,4.8175,3762.6,3762.0,2.65809698]